bitfinex/quotes_ETHUSD_20250126
["timestamp","ask_amount","ask_price","bid_price","bid_amount"]
[1737913639448,0.834,3339.2,3338.6,2.99519]
[1737913639738,0.42759865,3339.1,3338.7,0.55]
[1737913640135,0.04474365,3339.1,3339.0,0.55]
[1737913640340,0.04474365,3339.1,3339.0,4.3694]
[1737913640842,0.0008,3339.2,3339.1,2.99481]
[1737913641064,0.0008,3339.2,3339.0,2.9949]
[1737913641261,0.0008,3339.2,3339.1,2.99481]
[1737913641465,0.0008,3339.2,3339.1,3.54481]
[1737913642357,0.0008,3339.2,3339.1,0.55]
[1737913642669,0.04631684,3339.2,3339.1,0.55]
[1737913642885,0.0008,3339.2,3339.1,0.55]
[1737913643092,2.94517,3339.6,3338.9,2.99492]
[1737913643288,0.294517,3339.5,3339.0,0.55]
[1737913643494,0.34003384,3339.5,3339.0,0.55]
[1737913643638,2.99471,3339.3,3338.5,2.99533]
[1737913643974,3.80743,3339.2,3338.6,2.99524]
[1737913644278,0.85848794,3339.2,3338.7,0.55]
[1737913644773,0.85848794,3339.2,3338.3,0.7642]
[1737913644975,3.85327794,3339.2,3338.5,2.99534]
[1737913645272,0.38532779,3339.1,3338.6,0.55]
[1737913645470,2.99502,3338.9,3338.3,2.99551]
[1737913645677,0.38532779,3339.1,3338.1,2.9957]
[1737913645838,0.8127,3338.6,3337.9,2.99588]
[1737913646043,0.8127,3338.6,3338.0,2.99577]
[1737913646242,0.04589754,3338.5,3338.1,0.55]
[1737913646446,0.04589754,3338.5,3338.0,2.99577]
[1737913646670,0.04589754,3338.5,3337.8,2.99596]
[1737913646872,3.04126754,3338.5,3337.9,2.99584]
[1737913647182,3.04126754,3338.5,3338.0,0.55]
[1737913647681,2.99553,3338.4,3337.7,2.99605]
[1737913647979,3.04126754,3338.5,3337.8,0.55]
[1737913648180,0.0455053,3338.3,3337.8,0.55]
[1737913648367,2.99545,3338.4,3337.8,0.55]
[1737913648569,0.0455053,3338.2,3337.8,0.55]
[1737913648768,2.99545,3338.4,3338.0,0.55]
[1737913648979,0.0455053,3338.1,3338.0,0.55]
[1737913649185,2.99545,3338.4,3338.0,0.55]
[1737913649384,0.0455053,3338.1,3337.9,0.27503172]
[1737913649555,3.675803,3338.4,3337.9,0.27503172]
[1737913649882,0.680343,3338.4,3338.0,3.54574]
[1737913650083,0.04530337,3338.3,3338.0,3.54574]
[1737913650456,3.80799,3338.6,3338.0,3.54574]
[1737913650667,0.04530337,3338.5,3338.0,3.54574]
[1737913651662,0.04530337,3338.5,3337.9,0.27503172]
[1737913651869,3.04073337,3338.5,3337.9,0.27503172]
[1737913652069,0.04530337,3338.5,3338.4,2.99544]
[1737913652264,0.04530337,3338.5,3338.4,3.57538988]
[1737913652531,2.99461,3339.4,3338.1,5.99142]
[1737913652705,2.99461,3339.4,3338.0,0.8216]
[1737913652706,2.99461,3339.4,3338.9,0.55]
[1737913652908,0.0450841,3339.3,3338.9,3.54498]
[1737913653387,3.379368,3339.5,3339.1,0.55]
[1737913654112,0.0450841,3339.4,3339.1,0.55]
[1737913654257,0.0450841,3339.4,3339.2,0.55]
[1737913654705,0.0450841,3339.4,3339.3,4.36623]
[1737913654857,0.0450841,3339.4,3339.3,4.39616611]
[1737913655052,3.7993,3340.7,3340.1,2.99389]
[1737913655371,0.74960863,3340.6,3340.2,0.55]
[1737913656284,2.99362,3340.5,3339.9,2.99408]
[1737913656791,2.99362,3340.5,3340.0,0.55]
[1737913656968,0.04428193,3340.4,3339.9,2.99408]
[1737913657171,0.04428193,3340.4,3340.0,1.3716]
[1737913657478,0.7993,3340.7,3339.8,0.55]
[1737913657682,0.04519319,3340.3,3339.8,0.55]
[1737913657989,2.99356,3340.5,3339.8,3.54419]
[1737913658389,0.04519319,3340.4,3340.3,3.54374]
[1737913658608,0.85358777,3340.8,3340.3,3.54374]
[1737913658824,0.04422077,3340.7,3340.4,0.55]
[1737913659029,0.85358777,3340.8,3340.4,3.54363]
[1737913659230,0.04425539,3340.7,3340.4,3.54363]
[1737913659529,0.85358777,3340.8,3340.4,3.54363]
[1737913659694,0.85358777,3340.8,3340.2,0.55]
[1737913659695,3.03773539,3340.6,3340.2,0.55]
[1737913659895,2.99348,3340.6,3340.2,0.55]
[1737913660129,0.84369383,3340.5,3339.8,2.9941]
[1737913660428,3.83725383,3340.5,3339.9,2.99407]
[1737913660596,0.84369383,3340.5,3340.0,2.99397]
[1737913661327,0.84369383,3340.5,3340.1,0.55]
[1737913662030,0.84369383,3340.5,3339.3,2.99456]
[1737913662031,2.99378,3340.3,3339.3,0.7848]
[1737913662239,0.85358777,3340.8,3339.7,0.7848]
[1737913662411,0.04307082,3340.7,3340.2,2.99377]
[1737913662901,0.04307082,3340.7,3340.3,0.55]
[1737913663104,0.04307082,3340.7,3340.0,2.99398]
[1737913663315,2.99341,3340.7,3339.8,2.99416]
[1737913663509,0.04307082,3340.6,3340.3,0.55]
[1737913663925,0.85358777,3340.8,3340.3,3.54371]
[1737913664111,0.04307082,3340.5,3340.3,0.55]
[1737913664313,0.04307082,3340.5,3340.2,2.99376]
[1737913664314,0.85358777,3340.8,3340.5,0.55]
[1737913665410,0.85358777,3340.8,3340.3,0.55]
[1737913665945,0.85358777,3340.8,3340.3,3.54372]
[1737913666125,3.84694777,3340.8,3340.3,0.55]
[1737913666299,0.26061702,3340.8,3340.3,0.55]
[1737913666504,0.26061702,3340.8,3340.5,0.55]
[1737913666925,0.26061702,3340.8,3340.3,0.55]
[1737913667335,0.26061702,3340.8,3340.5,0.55]
[1737913667509,0.26061702,3340.8,3340.3,0.55]
[1737913667710,0.26061702,3340.8,3340.3,3.54374]
[1737913667931,0.26061702,3340.8,3339.9,0.60445284]
[1737913667932,2.99338,3340.7,3340.1,2.9939]
[1737913668147,2.99338,3340.7,3340.2,0.55]
[1737913668725,2.99338,3340.7,3339.9,0.7851]
[1737913668932,2.99338,3340.7,3340.0,2.99398]
[1737913669237,2.99349,3340.6,3340.0,2.99398]
[1737913669411,2.99375,3340.3,3339.6,3.77945]
[1737913669611,2.99375,3340.3,3339.7,2.99426]
[1737913670141,3.82665,3340.4,3339.8,3.54417]
[1737913671030,3.82665,3340.4,3340.0,0.55]
[1737913671031,0.833,3340.4,3340.0,0.55]
[1737913671826,0.58852412,3340.7,3340.1,2.99386]
[1737913672041,1.09361702,3340.8,3340.3,0.55]
[1737913672208,1.09361702,3340.8,3340.3,3.54369]
[1737913672411,1.09361702,3340.8,3340.3,0.55]
[1737913673313,3.03581886,3340.7,3340.0,2.994]
[1737913673729,3.03581886,3340.7,3340.2,0.55]
[1737913674647,3.03581886,3340.7,3340.1,2.99391]
[1737913674822,3.03581886,3340.7,3339.9,2.99409]
[1737913675024,2.99353,3340.6,3340.0,3.54401]
[1737913675236,2.99338,3340.7,3340.0,3.54401]
[1737913675415,0.04243886,3340.6,3340.1,2.9939]
[1737913675818,2.99347,3340.6,3340.1,2.9939]
[1737913676148,0.04243886,3340.5,3340.1,2.9939]
[1737913676813,4.08696702,3340.8,3340.1,2.9939]
[1737913677015,0.04243886,3340.7,3340.1,2.9939]
[1737913677338,3.03582886,3340.7,3340.1,2.9939]
[1737913678553,0.04243886,3340.7,3340.3,2.99373]
[1737913678931,0.59210289,3340.7,3340.3,2.99373]
[1737913679141,0.04242731,3340.6,3340.3,2.99373]
[1737913679840,0.04242731,3340.6,3340.1,2.9939]
[1737913680041,0.04242731,3340.6,3340.2,2.99377]
[1737913680617,0.04242731,3340.6,3340.1,2.9939]
[1737913681040,3.03589731,3340.6,3339.9,2.99403]
[1737913681242,0.833,3340.5,3339.3,0.7851]
[1737913681446,2.99389,3340.2,3339.5,2.99439]
[1737913681757,2.99389,3340.2,3339.3,2.99462]
[1737913681758,0.833,3340.1,3339.3,2.99462]
[1737913682056,2.99404,3340.0,3339.3,2.99457]
[1737913682262,0.04234648,3339.9,3339.5,2.99443]
[1737913682461,3.82692,3340.1,3339.5,2.99443]
[1737913682625,0.04234648,3340.0,3339.5,2.99443]
[1737913683052,0.04234648,3340.0,3339.4,0.55]
[1737913683361,0.04234648,3340.0,3339.6,0.27580589]
[1737913683854,0.04234648,3340.0,3339.6,3.27011589]
[1737913684166,0.04234648,3340.0,3339.7,3.54427]
[1737913684927,0.04234648,3340.0,3339.8,0.27580589]
[1737913685864,0.04234648,3340.0,3339.8,3.26999589]
[1737913686959,0.04234648,3340.0,3339.9,0.27580589]
[1737913687568,3.03635648,3340.0,3339.9,0.27580589]
[1737913687735,3.42329213,3340.0,3339.9,0.27580589]
[1737913688264,2.99426,3339.8,3339.4,0.27580589]
[1737913688425,3.78688978,3339.7,3339.4,0.27580589]
[1737913688621,2.99438,3339.6,3339.4,0.27580589]
[1737913689164,3.03656978,3339.5,3339.4,0.27580589]
[1737913689369,4.46521476,3339.5,3339.4,0.27580589]
[1737913689862,7.46521476,3339.5,3339.4,0.27580589]
[1737913690230,2.99463,3339.3,3339.2,0.27580589]
[1737913690458,3.78692215,3339.3,3339.2,0.27580589]
[1737913691785,2.99536,3338.5,3338.0,0.27580589]
[1737913691947,0.7505,3338.4,3338.0,0.27580589]
[1737913692337,0.04179215,3338.3,3338.0,0.27580589]
[1737913692983,3.03738215,3338.3,3338.0,0.27580589]
[1737913693463,0.04179215,3338.3,3338.0,0.27580589]
[1737913693667,0.04179215,3338.3,3337.8,2.99597]
[1737913694466,0.04179215,3338.3,3338.2,3.54562]
[1737913694646,0.7505,3339.1,3338.2,0.55]
[1737913694835,0.03886184,3339.0,3338.5,2.99528]
[1737913695740,3.74556,3338.9,3338.2,2.99559]
[1737913696058,0.03886184,3338.8,3338.2,2.99559]
[1737913696462,0.03886184,3338.8,3338.4,2.99537]
[1737913697381,0.03886184,3338.8,3338.2,2.99559]
[1737913697599,3.03400184,3338.8,3338.2,2.99559]
[1737913697784,0.71680802,3338.8,3338.0,2.9958]
[1737913697963,2.9953,3338.6,3337.9,0.55]
[1737913698166,2.99534,3338.6,3337.9,3.54588]
[1737913698373,0.7505,3338.3,3337.8,2.99595]
[1737913698876,0.03886184,3338.2,3337.8,2.99595]
[1737913699984,3.03456184,3338.2,3337.6,2.99615]
[1737913700148,0.03886184,3338.2,3337.6,2.99615]
[1737913700352,0.03886184,3338.2,3337.8,2.9959]
[1737913700571,0.03886184,3338.2,3337.9,2.99587]
[1737913701780,0.03886184,3338.2,3337.7,0.55]
[1737913701991,0.03886184,3338.2,3337.7,3.546]
[1737913702603,0.03886184,3338.2,3337.6,2.99614]
[1737913703177,0.03886184,3338.2,3337.7,2.99601]
[1737913704822,0.03886184,3338.2,3334.8,3.53707475]
[1737913704823,0.7894,3338.1,3337.0,2.99664]
[1737913705105,0.03870567,3338.0,3337.7,2.99606]
[1737913706199,0.03870567,3338.0,3337.5,2.99624]
[1737913707401,0.03870567,3338.0,3337.5,0.55]
[1737913707659,0.03870567,3338.0,3337.7,2.99599]
[1737913707769,0.03870567,3338.0,3337.8,2.99591]
[1737913708174,3.81687,3338.4,3337.8,2.99591]
[1737913708375,0.03870567,3337.9,3337.6,0.55]
[1737913708605,2.99567,3338.2,3337.6,3.54608]
[1737913708805,0.03870567,3337.8,3337.6,3.54608]
[1737913709230,2.99578,3338.1,3337.4,3.77948]
[1737913709370,0.03841067,3337.7,3337.4,3.77948]
[1737913709567,2.99578,3338.1,3337.4,2.99628]
[1737913709804,0.03841067,3337.6,3337.4,2.99628]
[1737913710106,0.03841067,3337.5,3337.4,3.54628]
[1737913710415,2.9958,3338.0,3337.4,3.54628]
[1737913710703,0.7829,3337.7,3337.2,2.99649]
[1737913710897,0.03841067,3337.6,3337.2,2.99649]
[1737913711109,0.03841067,3337.6,3336.9,2.99672]
[1737913711478,0.7829,3337.7,3336.9,2.99672]
[1737913711832,3.03463067,3337.6,3336.9,2.99672]
[1737913712225,3.03463067,3337.6,3337.0,0.55]
[1737913712394,3.03463067,3337.6,3337.2,0.55]
[1737913712709,0.03841067,3337.6,3337.2,0.55]
[1737913712883,2.99617,3337.6,3337.2,0.55]
[1737913713209,0.03824289,3337.5,3337.2,0.55]
[1737913714008,0.03824289,3337.5,3336.8,0.7697]
[1737913714009,0.7699,3338.0,3337.3,0.55]
[1737913714219,0.7699,3338.0,3337.7,2.99604]
[1737913714434,0.03645934,3337.9,3337.7,2.99604]
[1737913715625,0.03645934,3337.9,3337.6,0.55]
[1737913715957,0.7699,3338.0,3337.6,0.55]
[1737913716303,0.03645934,3337.9,3337.6,0.55]
[1737913717403,0.03645934,3337.9,3337.7,0.27602947]
[1737913717996,3.76547,3338.3,3337.7,0.27602947]
[1737913718201,0.03680093,3337.8,3337.7,3.82209947]
[1737913718607,3.76547,3338.3,3337.7,3.82209947]
[1737913718999,0.03680093,3338.2,3337.7,3.82209947]
[1737913719935,0.03680093,3338.2,3337.9,2.99588]
[1737913720136,0.03680093,3338.2,3338.0,0.55]
[1737913720508,2.99536,3338.5,3338.0,0.82602947]
[1737913720706,0.03587058,3338.4,3338.0,0.82602947]
[1737913721110,0.03587058,3338.4,3338.1,2.9957]
[1737913721333,0.7699,3338.6,3338.2,0.55]
[1737913721637,0.03587058,3338.3,3338.2,0.82602947]
[1737913721839,0.7699,3338.6,3338.2,0.82602947]
[1737913722447,0.03587058,3338.5,3338.2,0.82602947]
[1737913722749,0.03587058,3338.5,3338.3,0.27602947]
[1737913724237,0.03587058,3338.5,3338.4,0.27602947]
[1737913724938,0.03587058,3338.5,3338.4,3.82146947]
[1737913725138,0.8044,3339.2,3338.5,0.55]
[1737913725439,0.8044,3339.2,3338.8,0.55]
[1737913725642,0.03614279,3339.1,3338.8,0.55]
[1737913726034,0.03614279,3339.1,3338.9,0.27602947]
[1737913726468,0.03614279,3339.1,3339.0,3.5449]
[1737913726758,0.8044,3339.5,3339.0,3.5449]
[1737913726961,0.03624703,3339.1,3339.0,3.5449]
[1737913727255,0.8044,3339.5,3339.0,3.5449]
[1737913727753,0.03624703,3339.4,3339.0,3.82092947]
[1737913727959,0.03624703,3339.4,3339.2,2.99471]
[1737913728125,0.03624703,3339.4,3339.2,2.99467]
[1737913728462,0.7803,3339.8,3339.3,2.99462]
[1737913729030,0.7803,3339.8,3339.4,0.55]
[1737913729251,0.7803,3339.8,3339.4,3.54454]
[1737913729558,2.99393,3340.1,3339.2,0.7683]
[1737913729559,0.7803,3340.1,3339.5,2.99442]
[1737913729757,0.7803,3340.1,3339.5,3.27044947]
[1737913730468,2.99401,3340.0,3339.5,0.27602947]
[1737913730637,3.77422,3340.1,3339.5,0.27602947]
[1737913731263,0.7803,3340.1,3339.5,0.27602947]
[1737913731433,0.7803,3340.1,3339.5,2.99443]
[1737913731834,0.7803,3340.1,3339.5,0.55]
[1737913732035,0.7803,3340.1,3339.7,0.55]
[1737913732235,2.99354,3340.6,3339.9,2.99404]
[1737913732461,3.6963247,3340.6,3339.9,2.99404]
[1737913732667,3.0,3340.6,3340.0,3.54394]
[1737913732864,3.77369,3340.7,3340.1,2.99391]
[1737913733067,3.77369,3340.7,3340.2,0.55]
[1737913733273,0.03751491,3340.6,3340.2,0.55]
[1737913733970,2.99391,3340.2,3339.5,0.7683]
[1737913734150,2.99394,3340.1,3339.5,3.76269]
[1737913734340,3.03166322,3340.1,3339.6,0.55]
[1737913736350,0.03772322,3340.1,3339.8,0.55]
[1737913736664,3.77389,3340.5,3339.8,3.5441]
[1737913736862,0.03757278,3340.4,3339.5,3.76275]
[1737913737051,2.99385,3340.2,3339.5,3.76275]
[1737913737239,2.99385,3340.2,3339.6,0.55]
[1737913737441,0.03757278,3340.1,3339.6,0.55]
[1737913738470,3.77439,3340.0,3339.3,2.99461]
[1737913738777,0.03756121,3339.9,3339.4,2.99454]
[1737913740574,0.03756121,3339.9,3339.3,0.55]
[1737913740875,3.77439,3340.0,3339.4,2.99449]
[1737913741084,0.03767119,3339.9,3339.4,2.99449]
[1737913741289,0.7803,3339.8,3339.3,0.55]
[1737913741581,3.7745,3339.8,3339.2,2.99472]
[1737913741784,0.03766541,3339.7,3339.3,3.54462]
[1737913742277,0.03766541,3339.6,3339.3,3.54462]
[1737913742485,0.7803,3339.8,3339.3,3.54462]
[1737913742687,0.03766541,3339.7,3339.3,3.54462]
[1737913742982,0.7803,3339.8,3339.3,0.55]
[1737913743170,0.03766541,3339.6,3339.4,2.99449]
[1737913743493,0.03766541,3339.5,3339.4,2.99449]
[1737913743673,0.7803,3339.8,3339.4,2.99449]
[1737913743879,0.03766541,3339.7,3339.4,2.99449]
[1737913744184,0.7803,3339.8,3339.4,2.99449]
[1737913744384,0.03766541,3339.6,3339.4,2.99449]
[1737913744583,0.7803,3339.8,3339.4,2.99449]
[1737913744784,0.03766541,3339.5,3339.4,2.99449]
[1737913745081,0.7803,3339.8,3339.4,2.99449]
[1737913745291,0.03766541,3339.5,3339.4,2.99449]
[1737913745797,0.7573,3340.3,3339.5,0.55]
[1737913746094,0.7573,3340.3,3339.8,2.99415]
[1737913747265,0.7573,3340.3,3339.9,2.99408]
[1737913747692,0.7573,3340.3,3339.8,2.99415]
[1737913748193,0.7573,3340.3,3339.9,2.99408]
[1737913748384,0.03758438,3340.2,3339.9,2.99408]
[1737913750297,0.03758438,3340.2,3340.1,2.99392]
[1737913751385,0.7573,3340.6,3340.1,2.99392]
[1737913751585,0.26061702,3340.8,3340.2,0.55]
[1737913751785,0.26061702,3340.8,3340.3,2.99371]
[1737913752160,0.26061702,3340.8,3340.4,2.99364]
[1737913753486,0.26061702,3340.8,3340.7,2.99338]
[1737913754112,0.26061702,3340.8,3340.7,3.54338]
[1737913755017,0.26061702,3340.8,3340.7,3.819039]
[1737913755311,0.26061702,3340.8,3340.7,3.519039]
[1737913758415,0.26061702,3340.8,3340.7,4.328239]
[1737913759317,0.26061702,3340.8,3340.7,4.35816376]
[1737913759618,0.26061702,3340.8,3340.7,4.3581614]
[1737913759819,0.26061702,3340.8,3340.7,4.328239]
[1737913760319,0.29958048,3340.8,3340.7,2.969039]
[1737913760525,0.26061702,3340.8,3340.7,2.969039]
[1737913760817,0.29972502,3340.8,3340.7,2.969039]
[1737913760987,0.26061702,3340.8,3340.7,3.519039]
[1737913761185,0.29980599,3340.8,3340.7,0.275659]
[1737913761988,0.29980599,3340.8,3340.5,0.275659]
[1737913762602,0.29980599,3340.8,3340.5,3.269209]
[1737913762788,0.29980599,3340.8,3340.6,2.99346]
[1737913762990,0.29980599,3340.8,3340.6,2.74346]
[1737913763603,0.29980599,3340.8,3340.7,2.99338]
[1737913763817,0.29980599,3340.8,3340.7,3.269039]
[1737913768215,0.29980599,3340.8,3340.7,0.275659]
[1737913768931,0.29980599,3340.8,3340.7,3.269039]
[1737913769234,0.29980599,3340.8,3340.7,0.275659]
[1737913769434,0.29980599,3340.8,3340.7,3.269039]
[1737913771130,0.29980599,3340.8,3340.7,3.819039]
[1737913772197,0.29980599,3340.8,3340.7,3.269039]
[1737913774831,0.29971926,3340.8,3340.7,3.269039]
[1737913775723,0.29971926,3340.8,3340.7,3.819039]
[1737913776118,0.26061702,3340.8,3340.7,3.819039]
[1737913777147,0.26061702,3340.8,3340.7,3.84896736]
[1737913777447,0.26061702,3340.8,3340.7,3.819039]
[1737913777625,0.26061702,3340.8,3340.7,4.602439]
[1737913778021,0.26061702,3340.8,3340.7,4.63236744]
[1737913778611,0.26061702,3340.8,3340.7,8.63236744]
[1737913778812,0.26061702,3340.8,3340.7,8.602439]
[1737913779649,0.26061702,3340.8,3340.7,4.602439]
[1737913780355,0.26061702,3340.8,3340.7,4.63236336]
[1737913780648,0.26061702,3340.8,3340.7,4.602439]
[1737913781951,0.26061702,3340.8,3340.7,4.63236417]
[1737913782751,0.26061702,3340.8,3340.7,8.63236417]
[1737913782971,0.26061702,3340.8,3340.7,8.052439]
[1737913784173,0.26061702,3340.8,3340.7,8.602439]
[1737913784754,0.26061702,3340.8,3340.7,7.819039]
[1737913786589,0.26061702,3340.8,3340.7,3.819039]
[1737913788864,0.26061702,3340.8,3340.7,0.275659]
[1737913789247,0.30016443,3340.8,3340.7,0.275659]
[1737913790501,3.69885387,3340.8,3340.7,0.275659]
[1737913790702,4.45965387,3340.8,3340.7,0.275659]
[1737913790903,2.99338,3340.7,3340.6,0.275659]
[1737913791102,3.75418,3340.7,3340.6,0.275659]
[1737913791403,3.7933805,3340.7,3340.6,0.275659]
[1737913791608,4.5386492,3340.7,3340.6,0.275659]
[1737913792200,2.9938,3340.3,3339.9,0.275659]
[1737913792379,0.7726,3340.2,3339.9,0.275659]
[1737913792897,0.0392005,3340.1,3339.9,0.275659]
[1737913794011,0.0392005,3340.1,3339.8,0.275659]
[1737913794185,0.0392005,3340.1,3339.8,3.269769]
[1737913794684,0.0392005,3340.1,3339.8,0.275659]
[1737913794887,0.0392005,3340.1,3339.9,2.99409]
[1737913795210,0.0392005,3340.1,3339.9,3.269749]
[1737913795918,0.0392005,3340.1,3340.0,2.99401]
[1737913796075,0.0392005,3340.1,3340.0,3.54401]
[1737913796274,0.7726,3340.5,3340.1,0.55]
[1737913796474,0.7726,3340.5,3340.3,2.99368]
[1737913797513,0.7726,3340.5,3340.1,6.53771]
[1737913797705,0.7726,3340.5,3340.2,2.99379]
[1737913798136,0.7726,3340.5,3340.3,2.99371]
[1737913798333,0.7726,3340.5,3340.2,2.99383]
[1737913798514,0.7726,3340.5,3340.1,3.54385]
[1737913798709,1.03321702,3340.8,3340.3,2.99365]
[1737913798911,1.03321702,3340.8,3340.5,2.99356]
[1737913800505,1.03321702,3340.8,3340.6,2.99342]
[1737913801003,1.03321702,3340.8,3340.5,2.99356]
[1737913801199,0.26061702,3340.8,3340.7,2.99338]
[1737913802437,0.26061702,3340.8,3340.5,2.99356]
[1737913803138,0.26061702,3340.8,3340.7,2.99338]
[1737913804107,0.26061702,3340.8,3340.7,4.33988]
[1737913805645,0.26061702,3340.8,3340.7,4.61523296]
[1737913806859,0.26061702,3340.8,3340.7,3.81873296]
[1737913809370,0.26061702,3340.8,3340.7,3.26873296]
[1737913809715,0.29983491,3340.8,3340.7,3.26873296]
[1737913811030,0.29983491,3340.8,3340.7,0.27535296]
[1737913812767,0.29983491,3340.8,3340.7,3.26873296]
[1737913814303,0.29983491,3340.8,3340.2,2.99377]
[1737913814509,0.29983491,3340.8,3340.4,2.99359]
[1737913814659,0.7115844,3340.8,3340.4,2.99359]
[1737913815576,0.7115844,3340.8,3340.5,0.27583072]
[1737913815775,0.8245,3340.7,3340.5,0.27583072]
[1737913816198,0.03873796,3340.6,3340.5,0.82583072]
[1737913816376,0.03873796,3340.6,3340.5,4.61869072]
[1737913816562,0.26061702,3340.8,3340.7,2.99338]
[1737913817230,0.29935498,3340.8,3340.7,3.26921072]
[1737913818942,0.26061702,3340.8,3340.7,3.81921072]
[1737913821407,0.29954002,3340.8,3340.7,3.81921072]
[1737913822523,0.29954002,3340.8,3340.7,3.26921072]
[1737913824727,0.26061702,3340.8,3340.7,3.26921072]
[1737913825925,0.29958628,3340.8,3340.7,3.26921072]
[1737913829645,0.29958628,3340.8,3340.7,0.27583072]
[1737913829646,1.10968628,3340.8,3340.7,0.27583072]
[1737913837726,0.29958628,3340.8,3340.7,3.81921072]
[1737913838122,0.26061702,3340.8,3340.7,3.81921072]
[1737913851456,0.26061702,3340.8,3340.7,3.26921072]
[1737913852841,0.26061702,3340.8,3340.7,3.81921072]
[1737913861313,0.29969386,3340.8,3340.7,3.81921072]
[1737913861828,0.26061702,3340.8,3340.7,3.81921072]
[1737913864121,0.26061702,3340.8,3340.7,4.64991072]
[1737913866012,0.26061702,3340.8,3340.7,3.81921072]
[1737913869028,1.08601702,3340.8,3340.7,3.26921072]
[1737913869242,1.12524994,3340.8,3340.7,3.26921072]
[1737913870134,1.12524994,3340.8,3340.7,0.27583072]
[1737913870531,1.12524994,3340.8,3340.7,3.26921072]
[1737913871058,0.29984994,3340.8,3340.7,3.81921072]
[1737913871527,0.26061702,3340.8,3340.7,3.81921072]
[1737913873032,0.26061702,3340.8,3340.7,0.27583072]
[1737913873249,0.29967071,3340.8,3340.7,0.27583072]
[1737913875176,0.29967071,3340.8,3340.7,3.26921072]
[1737913877572,0.29967071,3340.8,3340.7,3.81921072]
[1737913877871,0.26061702,3340.8,3340.7,3.81921072]
[1737913878701,0.29976323,3340.8,3340.7,3.81921072]
[1737913880471,1.05706323,3340.8,3340.7,3.81921072]
[1737913880911,1.05706323,3340.8,3340.7,0.27583072]
[1737913881408,1.46207555,3340.8,3340.7,0.27583072]
[1737913881621,1.05706323,3340.8,3340.7,0.27583072]
[1737913882095,0.29976323,3340.8,3340.7,4.64671072]
[1737913882401,0.26061702,3340.8,3340.7,4.64671072]
[1737913883490,0.26061702,3340.8,3340.7,3.81921072]
[1737913883799,0.29830434,3340.8,3340.7,3.81921072]
[1737913884013,0.29830434,3340.8,3340.7,0.27583072]
[1737913884427,0.26061702,3340.8,3340.7,0.27583072]
[1737913884701,0.29830434,3340.8,3340.7,0.27583072]
[1737913885064,0.29830434,3340.8,3340.7,3.26921072]
[1737913887387,0.29830434,3340.8,3340.7,0.27583072]
[1737913889854,0.29830434,3340.8,3340.7,0.49679136]
[1737913893013,0.29830434,3340.8,3340.7,0.22096064]
[1737913893217,0.26061702,3340.8,3340.7,0.22096064]
[1737913893551,0.29830434,3340.8,3340.7,0.49717023]
[1737913894461,0.29830434,3340.8,3340.7,0.39717023]
[1737913894839,0.29830434,3340.8,3340.7,3.39055023]
[1737913895354,0.29830434,3340.8,3340.7,0.39717023]
[1737913895885,0.29830434,3340.8,3340.7,3.39055023]
[1737913897059,0.29830434,3340.8,3340.7,3.94055023]
[1737913897261,0.26061702,3340.8,3340.7,3.94055023]
[1737913897475,0.29813654,3340.8,3340.7,3.94055023]
[1737913898090,0.26061702,3340.8,3340.7,3.94055023]
[1737913898256,0.29813654,3340.8,3340.7,3.94055023]
[1737913898456,0.26061702,3340.8,3340.7,3.94055023]
[1737913901349,0.29820019,3340.8,3340.7,3.39055023]
[1737913902364,0.29820019,3340.8,3340.7,3.94055023]
[1737913902569,0.26061702,3340.8,3340.7,3.94055023]
[1737913905916,0.29837956,3340.8,3340.7,3.94055023]
[1737913906492,1.13077956,3340.8,3340.7,3.39055023]
[1737913906690,1.13077956,3340.8,3340.7,0.39717023]
[1737913907016,1.09301702,3340.8,3340.7,0.39717023]
[1737913907220,1.50162372,3340.8,3340.7,0.39717023]
[1737913907392,1.53933997,3340.8,3340.7,0.39717023]
[1737913909219,0.29833327,3340.8,3340.7,0.39717023]
[1737913909526,0.29833327,3340.8,3340.7,3.94055023]
[1737913909735,0.26061702,3340.8,3340.7,3.94055023]
[1737913913947,0.26061702,3340.8,3340.7,4.73805023]
[1737913916055,0.26061702,3340.8,3340.7,3.94055023]
[1737913917319,0.29721338,3340.8,3340.7,3.94055023]
[1737913918772,0.26061702,3340.8,3340.7,3.94055023]
[1737913919269,0.29721338,3340.8,3340.7,3.94055023]
[1737913920600,0.26061702,3340.8,3340.7,3.94055023]
[1737913922669,0.26061702,3340.8,3340.7,4.74635023]
[1737913924090,0.26061702,3340.8,3340.7,4.77627722]
[1737913924390,0.26061702,3340.8,3340.7,4.74635023]
[1737913925104,7.02e-06,3340.8,3340.7,7.74635023]
[1737913925390,7.02e-06,3340.8,3340.7,11.74635023]
[1737913926191,0.7744,3342.2,3340.9,0.8058]
[1737913926400,0.7744,3342.2,3342.0,2.99216]
[1737913926598,0.7744,3342.2,3342.1,2.99213]
[1737913926997,0.7794,3342.6,3342.2,0.55]
[1737913927230,0.005,3342.6,3342.5,2.99177]
[1737913927401,0.005,3342.6,3342.5,3.02168036]
[1737913927603,0.005,3342.6,3342.5,3.57168036]
[1737913928415,0.005,3342.6,3342.5,3.84788995]
[1737913928619,0.005,3342.6,3342.5,3.93894023]
[1737913930691,0.04133203,3342.6,3342.5,3.93894023]
[1737913932337,0.005,3342.6,3342.5,3.93894023]
[1737913933541,0.04133203,3342.6,3342.5,3.93894023]
[1737913934147,0.005,3342.6,3342.5,3.93894023]
[1737913935639,0.005,3342.6,3342.5,0.94717023]
[1737913936193,0.04133203,3342.6,3342.5,0.94717023]
[1737913936732,0.04133203,3342.6,3342.5,3.93894023]
[1737913937045,0.04133203,3342.6,3342.5,3.54177]
[1737913937539,0.005,3342.6,3342.5,3.54177]
[1737913938036,0.0418932,3342.6,3342.5,3.54177]
[1737913938241,0.005,3342.6,3342.5,3.54177]
[1737913938536,0.0418932,3342.6,3342.5,0.55]
[1737913939328,0.0418932,3342.6,3342.5,3.54177]
[1737913939750,0.0418932,3342.6,3342.5,0.55]
[1737913940833,0.0418932,3342.6,3342.5,3.54177]
[1737913941032,0.005,3342.6,3342.5,3.5350133]